bitfinex/quotes_SOLUSD_20250724
["timestamp","ask_amount","ask_price","bid_price","bid_amount"]
[1753316364447,0.69,190.38,190.33,12.09959699]
[1753316364644,0.69,190.38,190.32,0.06]
[1753316364645,12.09959699,190.37,190.32,0.06]
[1753316364948,12.09959699,190.33,190.32,0.06]
[1753316365152,12.78959699,190.33,190.32,0.06]
[1753316365364,12.09959699,190.35,190.32,0.06]
[1753316365758,12.09959699,190.34,190.32,0.06]
[1753316366554,12.09959699,190.37,190.33,0.71]
[1753316366747,2.74042052,190.4,190.36,12.09959699]
[1753316366946,0.03,190.49,190.37,12.80959699]
[1753316367159,12.09959699,190.41,190.33,0.71]
[1753316367359,12.78959699,190.41,190.36,12.09959699]
[1753316367570,13.12542657,190.47,190.37,12.09959699]
[1753316367764,0.03,190.49,190.32,13.19531379]
[1753316367765,12.78959699,190.44,190.38,12.09959699]
[1753316367957,12.09959699,190.42,190.33,5.7794357]
[1753316368158,12.09959699,190.39,190.34,12.09959699]
[1753316368470,12.09959699,190.39,190.33,17.35362945]
[1753316368771,12.09959699,190.36,190.32,0.06]
[1753316368978,12.09959699,190.35,190.32,0.06]
[1753316369149,26.0,190.39,190.32,5.31425847]
[1753316369463,18.37656199,190.46,190.32,5.31425847]
[1753316369464,0.69,190.4,190.33,12.09959699]
[1753316369662,12.09959699,190.37,190.32,12.15959699]
[1753316369972,12.78959699,190.37,190.32,17.41381832]
[1753316370164,0.69,190.37,190.32,17.41381832]
[1753316370951,12.09959699,190.38,190.32,17.41381832]
[1753316371278,12.09959699,190.38,190.33,12.09959699]
[1753316371655,12.09959699,190.36,190.32,0.06]
[1753316372068,0.69,190.35,190.32,0.06]
[1753316372263,12.78959699,190.35,190.32,0.06]
[1753316372972,12.09959699,190.33,190.32,0.06]
[1753316373158,0.69,190.34,190.32,0.06]
[1753316373363,25.5,190.33,190.32,0.06]
[1753316373870,18.04362945,190.33,190.32,0.06]
[1753316374460,31.17871062,190.33,190.28,0.06]
[1753316374659,12.09959699,190.29,190.28,0.06]
[1753316375169,12.78959699,190.29,190.28,0.06]
[1753316375764,18.04473388,190.29,190.28,0.06]
[1753316376279,0.69,190.35,190.28,0.77]
[1753316376474,12.09959699,190.34,190.28,12.86959699]
[1753316376777,12.09959699,190.34,190.29,12.09959699]
[1753316377152,31.25323519,190.36,190.3,0.71]
[1753316377478,26.0,190.34,190.29,12.09959699]
[1753316377653,12.09959699,190.35,190.29,12.09959699]
[1753316377854,43.35283218,190.36,190.3,12.80959699]
[1753316378578,31.25323519,190.36,190.3,12.80959699]
[1753316378752,12.09959699,190.31,190.28,0.06]
[1753316379155,8.02654164,190.33,190.28,0.06]
[1753316379363,31.94323519,190.36,190.29,8.73654164]
[1753316379563,34.71654164,190.36,190.3,8.02654164]
[1753316379775,8.02654164,190.38,190.32,13.28061512]
[1753316379955,8.02654164,190.39,190.33,8.02654164]
[1753316380580,8.71654164,190.4,190.34,8.02654164]
[1753316380875,13.27809084,190.42,190.36,8.02654164]
[1753316381079,8.02654164,190.42,190.36,8.02654164]
[1753316381380,8.02654164,190.43,190.38,8.02654164]
[1753316381677,8.02654164,190.43,190.33,0.52540324]
[1753316381897,8.02654164,190.41,190.35,13.28002207]
[1753316382077,8.71654164,190.42,190.36,8.02654164]
[1753316382394,8.02654164,190.41,190.36,8.02654164]
[1753316383167,0.69,190.42,190.37,8.02654164]
[1753316383370,8.02654164,190.43,190.38,8.02654164]
[1753316383765,13.96730296,190.45,190.39,13.9888861]
[1753316383988,5.97076132,190.45,190.38,13.27914224]
[1753316384282,8.02654164,190.43,190.38,13.27914224]
[1753316384459,0.03,190.45,190.4,8.02654164]
[1753316384662,8.02654164,190.44,190.38,5.2526006]
[1753316384991,8.71654164,190.44,190.38,13.27914224]
[1753316385286,8.02654164,190.41,190.36,13.27967688]
[1753316385490,8.71654164,190.41,190.36,5.25313524]
[1753316385689,5.97080887,190.45,190.37,0.71]
[1753316385993,0.72,190.45,190.38,13.27919422]
[1753316386290,8.02654164,190.44,190.38,13.27919422]
[1753316386469,0.69,190.44,190.37,5.96291079]
[1753316386669,8.02654164,190.42,190.37,5.96291079]
[1753316386995,8.02654164,190.42,190.37,13.98945243]
[1753316387189,8.71654164,190.41,190.36,5.25315765]
[1753316387393,0.69,190.41,190.36,13.27969929]
[1753316387585,8.02654164,190.43,190.37,8.73654164]
[1753316387786,8.02654164,190.44,190.38,5.25265258]
[1753316388090,8.74654164,190.45,190.39,8.02654164]
[1753316388294,8.05654164,190.45,190.4,8.02654164]
[1753316388484,0.03,190.45,190.4,8.02654164]
[1753316388689,0.03,190.45,190.41,0.71]
[1753316388889,0.03,190.45,190.4,0.71]
[1753316389084,0.69,190.44,190.4,8.02654164]
[1753316389410,8.71654164,190.43,190.38,51.65919422]
[1753316389800,0.69,190.43,190.38,52.36919422]
[1753316389974,8.02654164,190.44,190.38,52.36919422]
[1753316391004,5.97075442,190.45,190.38,52.36919422]
[1753316391189,5.25107866,190.44,190.38,52.36919422]
[1753316391389,8.02654164,190.43,190.38,51.65919422]
[1753316391605,8.68654164,190.43,190.38,51.65919422]
[1753316391779,8.68654164,190.43,190.38,46.40654164]
[1753316392093,8.02654164,190.41,190.35,0.69]
[1753316392284,0.66,190.42,190.34,38.36]
[1753316392484,0.66,190.42,190.35,8.02654164]
[1753316392485,8.02654164,190.41,190.35,8.02654164]
[1753316393909,13.27842647,190.41,190.35,13.28000001]
[1753316394111,0.03,190.45,190.36,8.71654164]
[1753316394414,8.02654164,190.44,190.38,8.02654164]
[1753316395114,8.02654164,190.43,190.38,8.02654164]
[1753316395302,8.02654164,190.43,190.38,13.27918736]
[1753316395498,8.68654164,190.43,190.38,5.25264572]
[1753316395700,5.25101744,190.44,190.34,8.02654164]
[1753316395701,8.02654164,190.4,190.34,8.02654164]
[1753316395902,8.02654164,190.35,190.3,0.06]
[1753316396107,8.02654164,190.35,190.3,0.75]
[1753316396108,8.02654164,190.33,190.3,0.75]
[1753316396409,8.02654164,190.34,190.3,0.75]
[1753316396614,0.66,190.38,190.3,14.03136448]
[1753316396824,8.02654164,190.37,190.31,8.02654164]
[1753316397120,8.02654164,190.36,190.3,6.00482284]
[1753316397334,26.0,190.39,190.31,8.02654164]
[1753316397537,34.02654164,190.41,190.36,8.02654164]
[1753316397833,8.02654164,190.43,190.37,8.71654164]
[1753316398133,26.66,190.44,190.39,8.02654164]
[1753316398434,0.03,190.45,190.4,8.02654164]
[1753316398594,0.03,190.45,190.4,8.71654164]
[1753316398794,0.66,190.44,190.39,8.02654164]
[1753316399097,8.02654164,190.42,190.37,8.02654164]
[1753316399303,8.02654164,190.43,190.38,5.25265258]
[1753316399501,8.68654164,190.44,190.38,13.27919422]
[1753316400108,0.03,190.45,190.4,8.02654164]
[1753316400330,0.03,190.45,190.41,8.02654164]
[1753316400635,0.03,190.45,190.39,6.3697]
[1753316400868,0.03,190.45,190.43,8.02654164]
[1753316401033,0.03,190.45,190.44,8.02654164]
[1753316401230,0.03,190.45,190.43,8.02654164]
[1753316401435,0.03,190.45,190.42,13.27809084]
[1753316401650,0.03,190.45,190.44,8.02654164]
[1753316402261,0.03,190.45,190.44,8.71654164]
[1753316403356,0.03,190.45,190.44,13.96753932]
[1753316403766,0.03,190.45,190.44,13.27753932]
[1753316404139,0.03,190.45,190.43,13.27778715]
[1753316404448,0.03,190.45,190.43,46.34654164]
[1753316405144,0.03,190.45,190.44,8.02654164]
[1753316405346,0.03,190.45,190.44,13.27753932]
[1753316405549,0.03,190.45,190.44,13.96753932]
[1753316406845,0.03,190.49,190.44,115.29503354]
[1753316407160,0.03,190.49,190.48,8.02654164]
[1753316407358,0.03,190.49,190.48,51.57643664]
[1753316407571,0.03,190.49,190.48,52.26643664]
[1753316408266,0.03,190.49,190.43,0.69]
[1753316408576,8.02654164,190.48,190.44,38.3]
[1753316408776,0.66,190.48,190.44,38.3]
[1753316408976,0.03,190.49,190.44,38.3]
[1753316409150,8.05654164,190.49,190.44,47.01654164]
[1753316409551,13.96620764,190.49,190.44,38.3]
[1753316409868,0.69,190.49,190.44,43.55089687]
[1753316410071,8.71654164,190.49,190.44,43.55089687]
[1753316410442,8.05654164,190.49,190.44,38.26]
[1753316410648,8.02654164,190.46,190.41,0.69]
[1753316410857,8.02654164,190.47,190.42,46.28654164]
[1753316411253,8.02654164,190.47,190.42,50.35272638]
[1753316411254,12.09272638,190.47,190.42,50.35272638]
[1753316411856,12.78272638,190.49,190.43,12.78272638]
[1753316412056,12.78272638,190.49,190.43,12.09272638]
[1753316412852,12.09272638,190.48,190.42,55.6040442]
[1753316413766,0.69,190.49,190.44,5.25099768]
[1753316413953,12.78272638,190.49,190.44,5.25099768]
[1753316414152,12.78272638,190.49,190.44,5.94099768]
[1753316414359,12.12272638,190.49,190.44,18.03372406]
[1753316414552,12.12272638,190.49,190.44,5.94099768]
[1753316414758,12.09272638,190.48,190.44,5.94099768]
[1753316415073,0.69,190.49,190.44,5.94099768]
[1753316415270,0.03,190.49,190.45,12.78272638]
[1753316415474,0.03,190.49,190.46,38.2]
[1753316415711,0.03,190.49,190.46,38.89]
[1753316415859,0.03,190.49,190.47,5.25017063]
[1753316416058,0.03,190.49,190.47,18.03289701]
[1753316418082,0.03,190.49,190.47,5.25017063]
[1753316418783,0.03,190.49,190.47,5.94017063]
[1753316419295,0.03,190.49,190.47,18.03289701]
[1753316419898,0.03,190.49,190.48,12.78272638]
[1753316421972,0.03,190.49,190.48,18.03262138]
[1753316423759,0.03,190.49,190.48,5.939895]
[1753316423974,0.03,190.49,190.48,56.13262138]
[1753316424359,1e-08,190.49,190.48,56.13262138]
[1753316424560,1e-08,190.49,190.44,0.68]
[1753316425078,0.71,190.48,190.45,38.2]
[1753316425280,12.80272638,190.48,190.45,38.2]
[1753316425473,12.80272638,190.47,190.45,38.2]
[1753316426074,12.80272638,190.46,190.4,13.72732638]
[1753316426268,1e-08,190.49,190.43,12.09272638]
[1753316426478,12.09272639,190.49,190.44,50.29272638]
[1753316426671,1e-08,190.49,190.46,12.09272638]
[1753316426979,1e-08,190.49,190.45,0.68]
[1753316426980,1e-08,190.49,190.48,12.09272638]
[1753316427384,1e-08,190.49,190.48,12.77272638]
[1753316428183,1e-08,190.49,190.48,18.02262138]
[1753316428670,1e-08,190.49,190.48,55.52262138]
[1753316429080,1e-08,190.49,190.48,43.429895]
[1753316429676,1e-08,190.49,190.48,55.52262138]
[1753316430399,1e-08,190.49,190.48,56.20262138]
[1753316430567,1e-08,190.49,190.48,56.72761088]
[1753316430773,14.236,190.53,190.48,56.72761088]
[1753316430774,14.236,190.53,190.52,12.09272638]
[1753316430973,14.236,190.53,190.52,50.93272638]
[1753316431190,14.236,190.53,190.52,46.84308274]
[1753316432201,14.236,190.53,190.52,13.25187551]
[1753316432579,14.236,190.53,190.5,13.25225129]
[1753316432776,14.236,190.53,190.51,38.14]
[1753316433286,14.206,190.53,190.51,46.14308274]
[1753316434195,14.206,190.53,190.51,43.38899299]
[1753316434399,14.206,190.53,190.51,51.39207573]
[1753316434694,14.206,190.53,190.51,44.06899299]
[1753316434875,14.206,190.53,190.51,51.39207573]
[1753316435579,14.206,190.53,190.52,8.00308274]
[1753316435785,14.206,190.53,190.51,43.38899299]
[1753316435974,14.206,190.53,190.51,51.39207573]
[1753316436584,14.206,190.53,190.52,8.00308274]
[1753316437176,14.206,190.53,190.52,8.68308274]
[1753316437496,1.573702,190.61,190.55,26.0]
[1753316437686,1.573702,190.61,190.6,8.00308274]
[1753316437873,1.573702,190.61,190.56,0.5247691]
[1753316438072,1.573702,190.61,190.6,8.00308274]
[1753316438372,1.573702,190.61,190.6,51.36967245]
[1753316439571,1.573702,190.61,190.6,13.24967245]
[1753316439773,1.573702,190.61,190.6,51.32967245]
[1753316444893,1.573702,190.61,190.6,5.24658971]
[1753316445192,1.573702,190.61,190.6,51.28967245]
[1753316446810,2.283702,190.61,190.6,8.00308274]
[1753316446982,2.283702,190.61,190.6,46.00308274]
[1753316447505,2.283702,190.61,190.6,5.24658971]
[1753316447712,2.283702,190.61,190.6,46.00308274]
[1753316448013,2.283702,190.61,190.54,5.24824183]
[1753316448214,0.71,190.6,190.55,38.0]
[1753316448504,0.71,190.59,190.55,38.0]
[1753316448804,1.573702,190.61,190.59,5.24686499]
[1753316449111,1.573702,190.61,190.6,46.04308274]
[1753316449288,2.283702,190.61,190.6,46.04308274]
[1753316449496,1.573702,190.61,190.6,46.04308274]
[1753316450712,1.573702,190.61,190.6,51.28967245]
[1753316454991,1.573702,190.61,190.6,43.28658971]
[1753316455214,1.573702,190.61,190.6,51.28967245]
[1753316455713,0.03,190.65,190.61,16.78468397]
[1753316455919,0.03,190.65,190.62,38.12]
[1753316456111,0.03,190.65,190.64,8.00308274]
[1753316456313,0.03,190.65,190.64,46.14308274]
[1753316457219,0.03,190.65,190.64,51.38857161]
[1753316459119,0.73,190.65,190.64,43.38548887]
[1753316459322,0.73,190.65,190.64,43.34548887]
[1753316459821,0.73,190.65,190.61,5.24631446]
[1753316460031,0.03,190.65,190.64,8.00308274]
[1753316460206,0.03,190.65,190.64,46.08308274]
[1753316460606,0.03,190.65,190.64,54.86468397]
[1753316460909,13.10305917,190.8,190.65,16.78468397]
[1753316461112,0.7,190.75,190.69,16.78468397]
[1753316461300,0.7,190.75,190.7,38.06]
[1753316461504,0.7,190.75,190.74,8.00308274]
[1753316461717,0.7,190.75,190.74,46.06308274]
[1753316461900,0.7,190.75,190.7,88.2]
[1753316462106,0.7,190.75,190.71,8.00308274]
[1753316462405,0.7,190.75,190.71,46.04308274]
[1753316462726,8.00308274,190.74,190.64,88.2]
[1753316462906,0.7,190.73,190.69,8.00308274]
[1753316463108,0.7,190.73,190.64,5.24548887]
[1753316463109,8.00308274,190.71,190.64,5.24548887]
[1753316463327,0.7,190.7,190.67,8.00308274]
[1753316463624,0.7,190.73,190.69,8.00308274]
[1753316463929,0.7,190.72,190.71,8.00308274]
[1753316465814,5.24239435,190.76,190.71,8.00308274]
[1753316466020,0.7,190.72,190.71,8.00308274]
[1753316466221,0.7,190.72,190.71,38.0]
[1753316466419,8.70308274,190.72,190.65,5.24521374]
[1753316466637,0.7,190.71,190.67,8.00308274]
[1753316466808,5.24225093,190.76,190.7,8.00308274]
[1753316467120,0.7,190.75,190.71,37.98]
[1753316467718,13.24533367,190.76,190.71,37.98]
[1753316467937,0.7,190.74,190.71,37.98]
[1753316468220,0.7,190.73,190.71,37.98]
[1753316468812,5.24225093,190.76,190.71,37.98]
[1753316469011,0.7,190.75,190.72,13.24637133]
[1753316469318,0.7,190.75,190.73,45.96308274]
[1753316469519,0.7,190.75,190.74,8.00308274]
[1753316469724,0.7,190.77,190.74,8.00308274]
[1753316469924,0.7,190.76,190.75,37.96]
[1753316470852,0.7,190.78,190.75,37.96]
[1753316471050,0.7,190.77,190.75,37.96]
[1753316471217,0.7,190.76,190.75,37.96]
[1753316473529,8.00308274,190.79,190.75,37.96]
[1753316473843,0.7,190.78,190.75,37.96]
[1753316474134,0.7,190.78,190.75,51.20544985]
[1753316474337,0.7,190.78,190.76,8.00308274]
[1753316474515,0.7,190.78,190.77,37.92]
[1753316475840,0.7,190.78,190.77,37.9]
[1753316476637,0.7,190.78,190.75,8.00308274]
[1753316476842,0.7,190.78,190.76,37.9]
[1753316477052,5.24087116,190.81,190.76,37.9]
[1753316477348,0.7,190.8,190.77,8.00308274]
[1753316477538,0.7,190.8,190.78,37.92]
[1753316477845,39.24344291,190.83,190.78,37.92]
[1753316478016,0.7,190.79,190.78,37.92]
[1753316479045,0.7,190.79,190.77,8.00308274]
[1753316479250,13.24388952,190.82,190.78,37.9]
[1753316479444,8.00308274,190.81,190.78,37.9]
[1753316479639,18.34215883,190.82,190.78,37.16]
[1753316479948,26.0,190.76,190.66,5.24493863]
[1753316480152,8.00308274,190.72,190.67,8.00308274]
[1753316480452,0.7,190.71,190.68,37.88]
[1753316480761,0.7,190.71,190.68,45.88308274]
[1753316480925,10.27658274,190.77,190.7,8.00308274]
[1753316481262,0.7,190.77,190.74,8.00308274]
[1753316481424,0.7,190.77,190.75,37.88]
[1753316481625,14.84467578,190.81,190.75,45.88308274]
[1753316481831,1.6007,190.81,190.75,37.88]
[1753316482040,1.6007,190.81,190.77,8.00308274]
[1753316482235,1.6007,190.81,190.78,37.88]
[1753316482551,0.71,190.8,190.78,37.88]
[1753316484344,0.71,190.79,190.78,37.88]
[1753316484534,0.71,190.79,190.78,37.9]
[1753316485053,13.95452432,190.79,190.78,37.9]
[1753316486237,5.95144158,190.79,190.78,37.9]
[1753316486558,13.95452432,190.79,190.78,37.9]
[1753316487230,5.95144158,190.79,190.78,37.9]
[1753316487741,1.6007,190.81,190.74,5.24265407]
[1753316488057,8.00308274,190.8,190.75,37.86]
[1753316488256,8.00308274,190.8,190.75,45.86308274]
[1753316488559,0.71,190.79,190.75,45.86308274]
[1753316489358,0.71,190.79,190.75,51.1054695]
[1753316489533,0.71,190.78,190.75,45.86308274]
[1753316490055,8.00308274,190.8,190.75,45.86308274]
[1753316490056,8.71308274,190.8,190.75,51.10554078]
[1753316490363,0.03,190.84,190.76,39.05421891]
[1753316490565,0.03,190.84,190.83,8.00308274]
[1753316490815,0.03,190.84,190.8,37.9]
[1753316491057,0.03,190.84,190.78,0.52416395]
[1753316491058,0.03,190.84,190.82,8.00308274]
[1753316491353,0.74,190.84,190.82,8.00308274]
[1753316491558,0.74,190.84,190.83,8.00308274]
[1753316491748,0.74,190.84,190.8,8.00308274]
[1753316491947,0.74,190.84,190.78,37.9]
[1753316491948,8.00308274,190.83,190.78,8.00308274]
[1753316492146,5.26999161,190.84,190.78,8.00308274]
[1753316492344,0.71,190.82,190.75,43.14241182]
[1753316492554,0.71,190.82,190.78,8.00308274]
[1753316492755,0.71,190.81,190.78,8.00308274]
[1753316492954,0.71,190.81,190.79,8.00308274]
[1753316493165,0.71,190.81,190.75,43.81241182]
[1753316493339,0.71,190.81,190.79,8.00308274]
[1753316493536,5.9802557,190.84,190.8,8.00308274]
[1753316493749,13.27333844,190.84,190.79,8.00308274]
[1753316493956,0.71,190.83,190.79,8.00308274]
[1753316494972,5.24034937,190.83,190.79,8.00308274]
[1753316495145,0.71,190.82,190.79,8.00308274]
[1753316495345,5.24034937,190.83,190.78,8.00308274]
[1753316495561,0.71,190.83,190.78,8.00308274]
[1753316495753,0.71,190.83,190.77,5.24183316]
[1753316496062,0.71,190.83,190.78,8.00308274]
[1753316496476,0.71,190.83,190.79,8.00308274]
[1753316496854,0.71,190.83,190.77,5.24183316]
[1753316497055,5.95027913,190.83,190.77,13.2449159]
[1753316497260,13.95336187,190.83,190.77,13.2449159]
[1753316497459,5.95027913,190.83,190.78,8.00308274]
[1753316497759,0.71,190.82,190.77,8.00308274]
[1753316497959,8.71308274,190.82,190.77,8.00308274]
[1753316498472,0.71,190.82,190.78,8.00308274]
[1753316498675,5.9505993,190.82,190.76,5.91213113]
[1753316498858,5.9505993,190.82,190.78,8.00308274]
[1753316499452,8.71308274,190.81,190.75,45.90308274]
[1753316499770,8.71308274,190.8,190.75,37.9]
[1753316500068,0.71,190.79,190.75,37.9]
[1753316500268,0.71,190.79,190.74,8.00308274]
[1753316500778,0.71,190.78,190.74,8.00308274]
[1753316501074,5.24136485,190.79,190.73,8.00308274]
[1753316501075,0.71,190.77,190.73,8.00308274]
[1753316501967,13.24444759,190.79,190.74,8.00308274]
[1753316502161,0.71,190.78,190.74,8.00308274]
[1753316502364,13.24389821,190.81,190.75,8.67308274]
[1753316502568,0.71,190.82,190.77,8.00308274]
[1753316502884,0.03,190.83,190.78,0.67]
[1753316503052,5.98027323,190.83,190.76,0.67]
[1753316503252,0.71,190.82,190.78,5.44388576]
[1753316503462,0.03,190.83,190.8,5.44388576]
[1753316503665,0.27,190.84,190.8,5.44388576]
[1753316503873,10.68340583,190.86,190.8,5.44388576]
[1753316504081,10.68338528,190.86,190.81,5.44388576]
[1753316504455,5.44388576,190.86,190.81,11.35469385]
[1753316504656,10.68316047,190.87,190.81,6.11388576]
[1753316504855,5.23927471,190.87,190.81,0.67]
[1753316505090,5.23927471,190.87,190.81,6.11388576]
[1753316505291,7.9821327,190.86,190.81,8.6521327]
[1753316505471,37.8,190.89,190.81,8.6521327]
[1753316505472,5.2386912,190.89,190.83,7.9821327]
[1753316505670,5.2375216,190.93,190.88,7.9821327]
[1753316505857,0.71,190.92,190.88,7.9821327]
[1753316506260,15.28186328,190.94,190.88,8.6521327]
[1753316506566,15.28186328,190.94,190.88,13.89082256]
[1753316506884,15.28186328,190.94,190.88,5.90868986]
[1753316507059,15.28186328,190.94,190.88,13.89082256]
[1753316507261,23.26399598,190.94,190.88,13.89082256]
[1753316507578,7.9821327,190.92,190.84,0.67]
[1753316507775,14.57186328,190.94,190.86,7.9821327]
[1753316507776,0.71,190.91,190.86,7.9821327]
[1753316508077,0.71,190.9,190.86,7.9821327]
[1753316508574,0.71,190.9,190.85,7.9821327]
[1753316508969,0.71,190.9,190.86,7.9821327]
[1753316509150,10.04453616,190.94,190.88,7.9821327]
[1753316509357,7.9821327,190.93,190.88,7.9821327]
[1753316509576,10.04453616,190.94,190.88,7.9821327]
[1753316509776,0.71,190.93,190.88,7.9821327]
[1753316510186,13.9299054,190.93,190.88,7.9821327]
[1753316510580,0.71,190.92,190.87,7.9821327]
[1753316510882,0.71,190.91,190.87,7.9821327]
[1753316511487,5.2377727,190.93,190.85,7.9821327]
[1753316511488,8.6621327,190.9,190.85,7.9821327]
[1753316511659,8.6621327,190.89,190.84,7.9821327]
[1753316511859,0.68,190.89,190.84,7.9821327]
[1753316512165,13.22048511,190.9,190.85,7.9821327]
[1753316512371,13.90027521,190.91,190.86,7.9821327]
[1753316512769,5.91814251,190.91,190.86,8.6921327]
[1753316513180,7.9821327,190.91,190.86,7.9821327]
[1753316513381,13.22026106,190.91,190.87,0.71]
[1753316513674,7.9821327,190.92,190.87,8.6921327]
[1753316514677,5.23807029,190.91,190.87,8.6921327]
[1753316516183,9.33453616,190.94,190.88,2.2132]
[1753316516486,7.9821327,190.93,190.87,7.9821327]
[1753316516687,14.96184227,190.94,190.83,1.5032]
[1753316516688,7.9821327,190.91,190.84,5.23979724]
[1753316516873,7.9821327,190.88,190.83,0.71]
[1753316517060,7.9821327,190.87,190.81,8.6921327]
[1753316517479,7.9821327,190.87,190.8,51.8344327]
[1753316517480,7.9821327,190.86,190.8,51.8344327]
[1753316517677,7.9821327,190.83,190.8,0.06]
[1753316517864,7.9821327,190.82,190.8,0.06]
[1753316518275,8.3721327,190.82,190.8,0.06]
[1753316518476,0.39,190.82,190.8,0.06]
[1753316518678,13.22266886,190.83,190.8,0.06]
[1753316518878,13.61266886,190.83,190.8,0.06]
[1753316520593,26.39,190.88,190.81,0.71]
[1753316520835,9.33453616,190.94,190.87,7.9821327]
[1753316521099,9.33453616,190.94,190.89,7.9821327]
[1753316521279,17.31666886,190.94,190.87,0.71]
[1753316521477,26.0,190.9,190.81,0.77]
[1753316521777,7.9821327,190.86,190.81,0.77]
[1753316522091,7.9821327,190.87,190.82,7.9821327]
[1753316522401,8.3721327,190.86,190.81,8.0421327]
[1753316522694,13.61169024,190.86,190.81,8.0421327]
[1753316523376,5.2392242,190.87,190.82,8.6921327]
[1753316523696,0.39,190.89,190.83,8.6921327]
[1753316523877,8.3721327,190.89,190.83,0.71]
[1753316524076,8.3721327,190.89,190.84,7.9821327]
[1753316524273,26.0,190.91,190.85,7.9821327]
[1753316524481,7.9821327,190.92,190.87,7.9821327]
[1753316524680,8.3721327,190.91,190.86,7.9821327]
[1753316524869,0.39,190.9,190.86,7.9821327]
[1753316525694,5.26755871,190.93,190.89,7.9821327]
[1753316525876,0.03,190.93,190.89,7.9821327]
[1753316526595,0.03,190.93,190.89,8.6921327]
[1753316526799,0.03,190.93,190.9,7.9821327]
[1753316527396,0.03,190.93,190.92,7.9821327]
[1753316527781,0.03,190.93,190.92,8.6921327]
[1753316527980,0.03,190.93,190.92,7.9821327]
[1753316528505,0.03,190.93,190.91,7.9821327]
[1753316528702,0.03,190.93,190.91,8.6921327]
[1753316529002,0.03,190.93,190.91,7.9821327]
[1753316529798,0.03,190.93,190.89,5.94854819]
[1753316529976,0.03,190.93,190.9,0.71]
[1753316530398,0.03,190.93,190.91,0.71]
[1753316530789,0.03,190.93,190.92,8.6921327]
[1753316531195,0.03,190.93,190.92,0.71]
[1753316531392,0.03,190.93,190.91,7.9821327]
[1753316531582,0.03,190.93,190.91,8.6921327]
[1753316531777,0.03,190.93,190.88,1.624]
[1753316531986,0.71,190.93,190.87,0.71]
[1753316532281,5.9477308,190.93,190.88,7.9821327]
[1753316532507,7.9821327,190.91,190.86,37.7]
[1753316532710,7.9821327,190.87,190.82,7.9821327]
[1753316533009,0.68,190.86,190.81,5.30080821]
[1753316533186,0.68,190.86,190.82,7.9821327]
[1753316533383,0.68,190.88,190.82,7.9821327]
[1753316533589,8.6621327,190.88,190.83,7.9821327]
[1753316533784,7.9821327,190.87,190.81,6.01070765]
[1753316534100,7.9821327,190.86,190.81,0.06]
[1753316534404,13.22199299,190.85,190.81,0.06]
[1753316534603,13.90199299,190.85,190.81,0.06]
[1753316534992,5.91986029,190.85,190.81,0.06]
[1753316536284,13.90199299,190.85,190.81,0.06]
[1753316536486,7.9821327,190.83,190.81,0.06]
[1753316536885,5.23986029,190.85,190.81,0.06]
[1753316536886,0.68,190.82,190.81,0.06]
[1753316537287,8.6621327,190.82,190.81,0.06]
[1753316537602,7.9821327,190.82,190.81,0.06]
[1753316537803,7.9821327,190.83,190.81,0.06]
[1753316538208,7.9821327,190.84,190.81,0.06]
[1753316538419,13.22226437,190.84,190.81,0.06]
[1753316538716,26.0,190.87,190.82,8.6921327]
[1753316538888,33.9821327,190.87,190.82,7.9821327]
[1753316539094,26.0,190.87,190.83,0.71]
[1753316539289,33.9821327,190.87,190.83,0.71]
[1753316539508,33.9821327,190.87,190.82,7.9821327]
[1753316539698,33.9821327,190.87,190.82,8.6921327]
[1753316539892,31.23913041,190.88,190.82,8.6921327]
[1753316540214,7.9821327,190.87,190.82,8.6921327]
[1753316540415,39.22126311,190.88,190.83,7.9821327]
[1753316540592,31.23913041,190.88,190.84,7.9821327]
[1753316540788,5.23913041,190.88,190.84,7.9821327]
[1753316540987,5.23913041,190.88,190.84,8.6921327]